fUST/lending_fUST_20250611
["ID","MTS","AMOUNT","RATE_DAILY","PERIOD"]
[365353336,1749616243695,-465.4712377,0.00023035,2]
[365353337,1749616243704,-8008.36350173,0.00023038,8]
[365353338,1749616243714,-365.0707398,0.00023041,2]
[365353339,1749616243723,-730.1414796,0.00023041,2]
[365353340,1749616243733,-365.0707398,0.00023041,2]
[365353341,1749616243742,-1647.65,0.000231,7]
[365353342,1749616243752,-49670.23,0.000231,7]
[365353343,1749616243762,-190.26046724,0.00023191,2]
[365353344,1749616243771,-151.0,0.000232,5]
[365353345,1749616243781,-16239.38042583,0.00023233,2]
[365353346,1749616243791,-8008.36350173,0.00023245,8]
[365353347,1749616243802,-500.0,0.00023256,2]
[365353348,1749616243812,-307.54,0.00023276,3]
[365353349,1749616243823,-185.57356674,0.00023287,4]
[365353350,1749616243832,-908.46,0.00023287,4]
[365353351,1749616243842,-799.55,0.00023287,4]
[365353352,1749616243852,-460.0,0.00023287,4]
[365353353,1749616243862,-725.66,0.00023287,4]
[365353354,1749616243871,-460.0,0.00023287,4]
[365353355,1749616243882,-1970.93,0.00023287,4]
[365353356,1749616243891,-735.29,0.00023287,4]
[365353357,1749616243901,-858.24,0.00023287,4]
[365353358,1749616243911,-460.0,0.00023287,4]
[365353359,1749616243921,-460.0,0.00023287,4]
[365353360,1749616243931,-1474.4,0.00023287,4]
[365353361,1749616243941,-2285.07,0.00023287,4]
[365353362,1749616243952,-571.35,0.00023287,4]
[365353363,1749616243962,-2083.99,0.00023287,4]
[365353364,1749616243972,-1126.58,0.00023287,4]
[365353365,1749616243982,-460.0,0.00023287,4]
[365353366,1749616243992,-605.71,0.00023287,4]
[365353367,1749616244002,-460.0,0.00023287,4]
[365353368,1749616244012,-1698.14,0.00023287,4]
[365353369,1749616244022,-1039.49,0.00023287,4]
[365353370,1749616244032,-2538.15,0.00023287,4]
[365353371,1749616244042,-1237.68,0.00023287,4]
[365353372,1749616244053,-460.0,0.00023287,4]
[365353373,1749616244063,-917.54,0.00023287,4]
[365353374,1749616244072,-587.0,0.0002329,2]
[365353375,1749616244083,-158.7816813,0.00023315,2]
[365353376,1749616244092,-581.2712425,0.00023315,2]
[365353377,1749616244102,-153.0,0.00023315,2]
[365353378,1749616244112,-158.7816813,0.00023315,2]
[365353379,1749616244122,-158.228202,0.00023315,2]
[365353380,1749616244132,-568.4352116,0.00023315,2]
[365353381,1749616244142,-180.4073737,0.00023315,2]
[365353382,1749616244151,-320.1911561,0.00023315,2]
[365353383,1749616244162,-176.7945791,0.00023315,2]
[365353384,1749616244172,-573.244939,0.00023315,2]
[365353385,1749616244182,-1315.72,0.00023339,2]
[365353386,1749616244192,-5000.0,0.00023351,2]
[365353387,1749616244202,-153.0,0.00023378,2]
[365353388,1749616244212,-823.0,0.00023381,2]
[365353389,1749616244221,-6066.69733587,0.000234,7]
[365353390,1749616244230,-6066.69733587,0.000234,7]
[365353391,1749616244240,-151.0,0.000234,10]
[365353392,1749616244250,-8008.36350173,0.00023452,9]
[365353393,1749616244260,-390.20198332,0.00023493,2]
[365353394,1749616244269,-151.0,0.000235,8]
[365353395,1749616244279,-507.74359681,0.00023521,2]
[365353396,1749616244289,-1200.0,0.00023521,2]
[365353397,1749616244299,-1000.0,0.00023521,2]
[365353398,1749616244308,-151.29930826,0.00023555,2]
[365353399,1749616244318,-200.0,0.00023561,4]
[365353400,1749616244327,-200.0,0.00023561,4]
[365353401,1749616244337,-200.0,0.00023561,4]
[365353402,1749616244346,-200.0,0.00023561,4]
[365353403,1749616244355,-200.0,0.00023561,4]
[365353404,1749616244365,-200.0,0.00023561,4]
[365353405,1749616244375,-200.0,0.00023561,4]
[365353406,1749616244385,-200.0,0.00023561,4]
[365353407,1749616244399,-908.46,0.00023561,4]
[365353408,1749616244409,-799.55,0.00023561,4]
[365353409,1749616244516,-254.59,0.00023561,4]
[365353410,1749616244525,-725.66,0.00023561,4]
[365353411,1749616244535,-460.0,0.00023561,4]
[365353412,1749616244546,-1970.93,0.00023561,4]
[365353413,1749616244555,-735.29,0.00023561,4]
[365353414,1749616244565,-858.24,0.00023561,4]
[365353415,1749616244574,-460.0,0.00023561,4]
[365353416,1749616244583,-460.0,0.00023561,4]
[365353417,1749616244593,-1474.4,0.00023561,4]
[365353418,1749616244603,-2285.07,0.00023561,4]
[365353419,1749616244612,-571.35,0.00023561,4]
[365353420,1749616244622,-2083.99,0.00023561,4]
[365353421,1749616244632,-1126.58,0.00023561,4]
[365353422,1749616244641,-460.0,0.00023561,4]
[365353423,1749616244651,-605.71,0.00023561,4]
[365353424,1749616244660,-460.0,0.00023561,4]
[365353425,1749616244669,-1698.14,0.00023561,4]
[365353426,1749616244679,-1039.49,0.00023561,4]
[365353427,1749616244689,-2538.15,0.00023561,4]
[365353428,1749616244698,-1237.68,0.00023561,4]
[365353429,1749616244708,-460.0,0.00023561,4]
[365353430,1749616244717,-917.54,0.00023561,4]
[365353431,1749616244727,-969.196,0.00023584,2]
[365353432,1749616244737,-229.447,0.00023584,2]
[365353433,1749616244747,-405.0,0.00023584,2]
[365353434,1749616244756,-653.0,0.00023584,2]
[365353435,1749616244766,-520224.82774668,0.000236,2]
[365353436,1749616244868,-1251.3828315,0.000236,2]
[365353437,1749616245209,-0.0036189,0.00020548,2]
[365353449,1749616245829,-499.9963811,0.00020548,2]
[365353450,1749616245838,-500.0,0.00020548,2]
[365353451,1749616245847,-500.0,0.00020548,2]
[365353452,1749616245857,-184.05796197,0.00020548,2]
[365353453,1749616245867,-665.11,0.000206,2]
[365353454,1749616245876,-460.0,0.00021095,4]
[365353455,1749616245886,-460.0,0.00021095,4]
[365353456,1749616245896,-331.24740836,0.00021095,4]
[365353457,1749616245907,-460.0,0.00021095,4]
[365353458,1749616245916,-460.0,0.00021095,4]
[365353459,1749616245927,-460.0,0.00021369,4]
[365353460,1749616245936,-460.0,0.00021369,4]
[365353461,1749616245946,-460.0,0.00021369,4]
[365353462,1749616245956,-460.0,0.00021643,4]
[365353463,1749616245965,-460.0,0.00021643,4]
[365353464,1749616245974,-460.0,0.00021643,4]
[365353465,1749616245983,-460.0,0.00021917,4]
[365353466,1749616245993,-460.0,0.00021917,4]
[365353467,1749616246002,-460.0,0.00021917,4]
[365353468,1749616246011,-665.11,0.00022,7]
[365353470,1749616246021,-460.0,0.00022191,4]
[365353472,1749616246030,-460.0,0.00022191,4]
[365353477,1749616246042,-460.0,0.00022191,4]
[365353479,1749616246053,-173.61221489,0.000222,69]
[365353480,1749616246062,-160.0,0.00022297,2]
[365353481,1749616246071,-460.0,0.00022465,4]
[365353482,1749616246080,-360.0,0.00022465,4]
[365353483,1749616246089,-460.0,0.00022465,4]
[365353484,1749616246098,-95.96884784,0.00022739,4]
[365353485,1749616246110,-364.03115216,0.00022739,4]
[365353487,1749616246119,-460.0,0.00022739,4]
[365353489,1749616246128,-460.0,0.00023013,4]
[365353491,1749616246138,-460.0,0.00023013,4]
[365353493,1749616246147,-365.0707398,0.00023041,2]
[365353495,1749616246156,-460.0,0.00023287,4]
[365353497,1749616246165,-460.0,0.00023287,4]
[365353499,1749616246175,-420.2245609,0.000234,7]
[365353512,1749616246288,-1112.8,0.00021095,4]
[365353514,1749616246297,-424.19973472,0.00023,3]
[365353516,1749616246306,-244.8854391,0.000234,7]
[365353518,1749616246315,-460.0,0.00023561,4]
[365353520,1749616246325,-300.41019322,0.00023561,4]
[365353627,1749616504267,-282.02,0.000181,2]
[365353629,1749616594527,323.7,0.00024957,120]
[365353645,1749616714084,220.934453,0.00013699,2]
[365353661,1749617134220,-298.84282811,0.000181,2]
[365353677,1749617279728,2407.0,0.00024658,120]
[365353678,1749617313590,-297.75,0.000181,2]
[365353680,1749617317688,2407.0,0.00024658,120]
[365353688,1749617422053,-117.75537067,0.000181,2]
[365353689,1749617422077,-244.65,0.00018998,2]
[365353690,1749617422098,-783.92073543,0.00019731,2]
[365353691,1749617422120,-1200.0,0.00019884,2]
[365353692,1749617422142,-300.0,0.00019885,2]
[365353693,1749617422163,-300.0,0.00019885,2]
[365353694,1749617422185,-300.0,0.00019885,2]
[365353695,1749617422208,-24900.0,0.00019886,2]
[365353696,1749617422231,-489.31,0.00019903,2]
[365353697,1749617422252,-165.86622275,0.0002,2]
[365353698,1749617422282,-1198.49767115,0.00020055,2]
[365353749,1749617432109,-160.46656355,0.00018898,3]
[365353751,1749617432119,-302.94906905,0.00020055,2]
[365353753,1749617432128,-220.934453,0.00020187,2]
[365353755,1749617432138,-168.659,0.00020475,2]
[365353757,1749617432147,-179.12361884,0.00020475,2]
[365353759,1749617432157,-236.86,0.00020538,2]
[365353761,1749617432166,-266.42694092,0.00020547,2]
[365353763,1749617432178,-233.57305908,0.00020547,2]
[365353765,1749617432188,-165.86622271,0.00020696,2]
[365353767,1749617432197,-148.93025311,0.000209,4]
[365353770,1749617432208,-2668.72429353,0.000209,4]
[365353772,1749617432218,-765.96357219,0.00020969,2]
[365353776,1749617432248,-531.76130655,0.00020969,2]
[365353778,1749617432258,-1148.84305952,0.00020995,2]
[365353780,1749617432268,-2817.65454649,0.00021038,4]
[365353782,1749617432278,-500.0,0.00021064,2]
[365353784,1749617432287,-403.21717836,0.00021073,2]
[365353786,1749617432296,-503.32980933,0.00021073,2]
[365353788,1749617432305,-500.0,0.00021073,2]
[365353790,1749617432315,-500.0,0.00021073,2]
[365353792,1749617432324,-504.40342295,0.00021073,2]
[365353794,1749617432333,-216.35,0.00021085,3]
[365353796,1749617432343,-649.05,0.00021085,3]
[365353798,1749617432352,-307.54,0.00021085,3]
[365353800,1749617432361,-615.08,0.00021085,3]
[365353802,1749617432370,-338.4323587,0.00021094,2]
[365353804,1749617432380,-187.11755133,0.00021094,2]
[365353806,1749617432389,-254.60910511,0.00021095,4]
[365353808,1749617432399,-460.0,0.00021095,4]
[365353810,1749617432408,-460.0,0.00021095,4]
[365353812,1749617432417,-460.0,0.00021095,4]
[365353814,1749617432427,-460.0,0.00021095,4]
[365353816,1749617432436,-438.60808731,0.00021095,4]
[365353818,1749617432446,-438.80370224,0.00021095,4]
[365353820,1749617432455,-460.0,0.00021095,4]
[365353822,1749617432465,-460.0,0.00021095,4]
[365353824,1749617432474,-370.0,0.00021095,4]
[365353826,1749617432484,-460.0,0.00021095,4]
[365353828,1749617432493,-444.9063548,0.00021095,4]
[365353830,1749617432503,-460.0,0.00021095,4]
[365353832,1749617432513,-460.0,0.00021095,4]
[365353834,1749617432522,-497.905898,0.00021095,4]
[365353836,1749617432532,-460.0,0.00021095,4]
[365353838,1749617432541,-460.0,0.00021095,4]
[365353840,1749617432551,-460.0,0.00021095,4]
[365353842,1749617432560,-460.0,0.00021095,4]
[365353844,1749617432569,-460.0,0.00021095,4]
[365353846,1749617432578,-460.0,0.00021095,4]
[365353848,1749617432587,-460.0,0.00021095,4]
[365353850,1749617432596,-410.0,0.00021095,4]
[365353852,1749617432605,-487.16130312,0.00021095,4]
[365353854,1749617432614,-460.0,0.00021095,4]
[365353856,1749617432624,-385.78601277,0.00021095,4]
[365353858,1749617432632,-441.66076612,0.00021095,4]
[365353860,1749617432642,-460.0,0.00021095,4]
[365353862,1749617432651,-509.44674443,0.00021095,4]
[365353864,1749617432660,-420.0,0.00021095,4]
[365353866,1749617432669,-440.0,0.00021095,4]
[365353868,1749617432679,-550.0,0.00021095,4]
[365353870,1749617432688,-404.72078249,0.00021095,4]
[365353871,1749617432698,-430.0,0.00021095,4]
[365353874,1749617432707,-452.41004517,0.00021095,4]
[365353875,1749617432716,-460.0,0.00021095,4]
[365353877,1749617432725,-415.05227428,0.00021095,4]
[365353879,1749617432734,-460.0,0.00021095,4]
[365353881,1749617432743,-460.0,0.00021095,4]
[365353883,1749617432752,-460.0,0.00021095,4]
[365353885,1749617432762,-460.0,0.00021095,4]
[365353887,1749617432772,-430.0,0.00021095,4]
[365353890,1749617432783,-460.0,0.00021095,4]
[365353892,1749617432792,-401.95911042,0.00021095,4]
[365353894,1749617432801,-460.0,0.00021095,4]
[365353896,1749617432815,-346.60426908,0.00021095,4]
[365353898,1749617432824,-460.0,0.00021095,4]
[365353899,1749617432833,-434.55644681,0.00021095,4]
[365353901,1749617432842,-460.0,0.00021095,4]
[365353903,1749617432853,-460.0,0.00021095,4]
[365353905,1749617432862,-374.94080551,0.00021095,4]
[365353907,1749617432871,-460.0,0.00021095,4]
[365353909,1749617432880,-460.0,0.00021095,4]
[365353911,1749617432890,-460.0,0.00021095,4]
[365353914,1749617432900,-430.0,0.00021095,4]
[365353916,1749617432909,-460.0,0.00021095,4]
[365353917,1749617432918,-460.0,0.00021095,4]
[365353919,1749617432927,-460.0,0.00021095,4]
[365353921,1749617432937,-513.92253522,0.00021095,4]
[365353923,1749617432946,-440.0,0.00021095,4]
[365353925,1749617432956,-460.0,0.00021095,4]
[365353927,1749617432965,-460.0,0.00021095,4]
[365353929,1749617432974,-460.0,0.00021095,4]
[365353931,1749617432983,-437.0416283,0.00021095,4]
[365353933,1749617432993,-390.0,0.00021095,4]
[365353935,1749617433002,-430.0,0.00021095,4]
[365353937,1749617433011,-170.92192624,0.00021095,4]
[365353939,1749617433021,-460.0,0.00021095,4]
[365353941,1749617433031,-460.0,0.00021095,4]
[365353943,1749617433041,-460.0,0.00021095,4]
[365353945,1749617433051,-453.57382819,0.00021095,4]
[365353947,1749617433060,-430.0,0.00021095,4]
[365353949,1749617433070,-460.0,0.00021095,4]
[365353951,1749617433080,-430.0,0.00021095,4]
[365353953,1749617433090,-423.4942822,0.00021095,4]
[365353955,1749617433100,-460.0,0.00021095,4]
[365353957,1749617433110,-460.0,0.00021095,4]
[365353959,1749617433119,-403.09610193,0.00021095,4]
[365353961,1749617433128,-350.0,0.00021095,4]
[365353963,1749617433138,-460.0,0.00021095,4]
[365353965,1749617433148,-403.9142352,0.00021095,4]
[365353967,1749617433157,-400.0,0.00021095,4]
[365353969,1749617433167,-460.0,0.00021095,4]
[365353971,1749617433177,-460.0,0.00021095,4]
[365353973,1749617433186,-460.0,0.00021095,4]
[365353975,1749617433195,-460.0,0.00021095,4]
[365353977,1749617433205,-460.0,0.00021095,4]
[365353979,1749617433215,-460.0,0.00021095,4]
[365353981,1749617433225,-460.0,0.00021095,4]
[365353983,1749617433235,-460.0,0.00021095,4]
[365353985,1749617433245,-503.28037661,0.00021095,4]
[365353987,1749617433255,-460.0,0.00021095,4]
[365353990,1749617433266,-460.0,0.00021095,4]
[365353991,1749617433275,-460.0,0.00021095,4]
[365353994,1749617433285,-329.13846385,0.00021095,4]
[365353996,1749617433295,-460.0,0.00021095,4]
[365353997,1749617433304,-460.0,0.00021095,4]
[365353999,1749617433314,-350.0,0.00021095,4]
[365354001,1749617433324,-335.40509036,0.00021095,4]
[365354003,1749617433333,-460.0,0.00021095,4]
[365354005,1749617433342,-460.0,0.00021095,4]
[365354007,1749617433352,-400.0,0.00021095,4]
[365354009,1749617433361,-460.0,0.00021095,4]
[365354011,1749617433371,-460.0,0.00021095,4]
[365354013,1749617433381,-240.0,0.00021095,4]
[365354015,1749617433391,-460.0,0.00021095,4]
[365354017,1749617433401,-460.0,0.00021095,4]
[365354020,1749617433412,-460.0,0.00021095,4]
[365354022,1749617433422,-380.0,0.00021095,4]
[365354024,1749617433432,-543.58219566,0.00021095,4]
[365354026,1749617433441,-207.80654649,0.00021095,4]
[365354027,1749617433450,-430.0,0.00021095,4]
[365354029,1749617433460,-460.0,0.00021095,4]
[365354032,1749617433470,-464.01271718,0.00021095,4]
[365354033,1749617433480,-513.24473066,0.00021095,4]
[365354035,1749617433490,-460.0,0.00021095,4]
[365354038,1749617433499,-460.0,0.00021095,4]
[365354040,1749617433509,-440.0,0.00021095,4]
[365354041,1749617433519,-461.73416619,0.00021095,4]
[365354043,1749617433530,-460.0,0.00021095,4]
[365354045,1749617433540,-460.0,0.00021095,4]
[365354047,1749617433549,-460.0,0.00021095,4]
[365354049,1749617433558,-460.0,0.00021095,4]
[365354051,1749617433568,-438.27894563,0.00021095,4]
[365354053,1749617433578,-460.0,0.00021095,4]
[365354055,1749617433588,-460.0,0.00021095,4]
[365354057,1749617433598,-460.0,0.00021095,4]
[365354059,1749617433608,-460.0,0.00021095,4]
[365354061,1749617433618,-440.0,0.00021095,4]
[365354063,1749617433629,-460.0,0.00021095,4]
[365354065,1749617433639,-460.0,0.00021095,4]
[365354067,1749617433648,-440.0,0.00021095,4]
[365354069,1749617433658,-460.0,0.00021095,4]
[365354071,1749617433668,-448.0,0.00021095,4]
[365354073,1749617433678,-460.0,0.00021095,4]
[365354075,1749617433687,-460.0,0.00021095,4]
[365354076,1749617433696,-460.0,0.00021095,4]
[365354078,1749617433706,-472.93453681,0.00021095,4]
[365354080,1749617433715,-500.0,0.00021095,4]
[365354082,1749617433724,-460.0,0.00021095,4]
[365354084,1749617433734,-400.0,0.00021095,4]
[365354086,1749617433743,-460.0,0.00021095,4]
[365354089,1749617433753,-460.0,0.00021095,4]
[365354091,1749617433763,-460.0,0.00021095,4]
[365354093,1749617433773,-460.0,0.00021095,4]
[365354094,1749617433783,-460.0,0.00021095,4]
[365354096,1749617433793,-430.0,0.00021095,4]
[365354098,1749617433804,-460.0,0.00021095,4]
[365354100,1749617433816,-460.0,0.00021095,4]
[365354102,1749617433825,-460.0,0.00021095,4]
[365354104,1749617433837,-460.0,0.00021095,4]
[365354106,1749617433848,-383.02709817,0.00021095,4]
[365354108,1749617433858,-460.0,0.00021095,4]
[365354110,1749617433867,-417.25846485,0.00021095,4]
[365354112,1749617433876,-460.0,0.00021095,4]
[365354114,1749617433887,-294.35846197,0.00021095,4]
[365354116,1749617433896,-530.8897982,0.00021095,4]
[365354118,1749617433904,-460.0,0.00021095,4]
[365354120,1749617433913,-465.3907302,0.00021095,4]
[365354122,1749617433921,-435.72751578,0.00021095,4]
[365354124,1749617433930,-460.0,0.00021095,4]
[365354126,1749617433939,-460.0,0.00021095,4]
[365354128,1749617433947,-460.0,0.00021095,4]
[365354130,1749617433957,-460.0,0.00021095,4]
[365354132,1749617433966,-380.0,0.00021095,4]
[365354134,1749617433977,-390.0,0.00021095,4]
[365354136,1749617433986,-460.0,0.00021095,4]
[365354138,1749617433995,-436.99387,0.00021095,4]
[365354140,1749617434005,-430.0,0.00021095,4]
[365354142,1749617434015,-460.0,0.00021095,4]
[365354144,1749617434025,-440.0,0.00021095,4]
[365354146,1749617434034,-460.0,0.00021095,4]
[365354148,1749617434044,-460.0,0.00021095,4]
[365354151,1749617434054,-460.0,0.00021095,4]
[365354152,1749617434063,-2810.08,0.00021095,4]
[365354154,1749617434073,-430.0,0.00021095,4]
[365354158,1749617434092,-460.0,0.00021095,4]
[365354160,1749617434103,-460.0,0.00021095,4]
[365354162,1749617434112,-430.0,0.00021095,4]
[365354164,1749617434122,-460.0,0.00021095,4]
[365354166,1749617434131,-829.06,0.00021095,4]
[365354168,1749617434141,-460.0,0.00021095,4]
[365354170,1749617434150,-460.0,0.00021095,4]
[365354172,1749617434160,-460.0,0.00021095,4]
[365354174,1749617434170,-460.0,0.00021095,4]
[365354176,1749617434179,-460.0,0.00021095,4]
[365354178,1749617434188,-460.0,0.00021095,4]
[365354180,1749617434198,-460.0,0.00021095,4]
[365354182,1749617434208,-459.73682816,0.00021095,4]
[365354184,1749617434217,-460.0,0.00021095,4]
[365354186,1749617434226,-460.0,0.00021095,4]
[365354188,1749617434236,-460.0,0.00021095,4]
[365354190,1749617434245,-460.0,0.00021095,4]
[365354192,1749617434255,-460.0,0.00021095,4]
[365354194,1749617434265,-460.0,0.00021095,4]
[365354196,1749617434275,-460.0,0.00021095,4]
[365354198,1749617434286,-460.0,0.00021095,4]
[365354200,1749617434296,-460.0,0.00021095,4]
[365354202,1749617434306,-464.3297887,0.00021095,4]
[365354204,1749617434316,-169.6556316,0.00021095,4]
[365354206,1749617434327,-460.0,0.00021095,4]
[365354208,1749617434337,-460.0,0.00021095,4]
[365354210,1749617434347,-460.0,0.00021095,4]
[365354212,1749617434358,-460.0,0.00021095,4]
[365354214,1749617434368,-460.0,0.00021095,4]
[365354216,1749617434378,-460.0,0.00021095,4]
[365354218,1749617434388,-460.0,0.00021095,4]
[365354220,1749617434399,-563.24984474,0.00021095,4]
[365354222,1749617434409,-460.0,0.00021095,4]
[365354224,1749617434420,-460.0,0.00021095,4]
[365354226,1749617434430,-1455.28,0.00021095,4]
[365354240,1749617434587,-460.0,0.00021095,4]
[365354242,1749617434597,-460.0,0.00021095,4]
[365354244,1749617434607,-460.0,0.00021095,4]
[365354246,1749617434617,-460.0,0.00021095,4]
[365354248,1749617434627,-460.0,0.00021095,4]
[365354250,1749617434637,-460.0,0.00021095,4]
[365354251,1749617434649,-460.0,0.00021095,4]
[365354252,1749617434659,-460.0,0.00021095,4]
[365354253,1749617434670,-460.0,0.00021095,4]
[365354254,1749617434679,-400.0,0.00021095,4]
[365354255,1749617434689,-460.0,0.00021095,4]
[365354256,1749617434698,-460.0,0.00021095,4]
[365354257,1749617434708,-460.0,0.00021095,4]
[365354258,1749617434718,-460.0,0.00021095,4]
[365354259,1749617434727,-460.0,0.00021095,4]
[365354260,1749617434737,-460.0,0.00021095,4]
[365354261,1749617434747,-461.69333702,0.00021095,4]
[365354262,1749617434756,-1030.92,0.00021095,4]
[365354263,1749617434766,-460.0,0.00021095,4]
[365354264,1749617434776,-460.0,0.00021095,4]
[365354265,1749617434785,-460.0,0.00021095,4]
[365354266,1749617434795,-460.0,0.00021095,4]
[365354267,1749617434809,-460.0,0.00021095,4]
[365354268,1749617434819,-460.0,0.00021095,4]
[365354269,1749617434828,-460.0,0.00021095,4]
[365354270,1749617434838,-460.0,0.00021095,4]
[365354271,1749617434849,-460.0,0.00021095,4]
[365354272,1749617434859,-460.0,0.00021095,4]
[365354273,1749617434868,-460.0,0.00021095,4]
[365354274,1749617434877,-460.0,0.00021095,4]
[365354275,1749617434887,-2660.51,0.00021095,4]
[365354276,1749617434897,-460.0,0.00021095,4]
[365354277,1749617434906,-410.0,0.00021095,4]
[365354278,1749617434915,-430.0,0.00021095,4]
[365354279,1749617434924,-460.0,0.00021095,4]
[365354280,1749617434933,-460.0,0.00021095,4]
[365354281,1749617434943,-460.0,0.00021095,4]
[365354282,1749617434952,-460.0,0.00021095,4]
[365354283,1749617434961,-460.0,0.00021095,4]
[365354284,1749617434970,-460.0,0.00021095,4]
[365354285,1749617434979,-460.0,0.00021095,4]
[365354286,1749617434989,-462.95534283,0.00021095,4]
[365354287,1749617434998,-432.71006021,0.00021095,4]
[365354288,1749617435007,-1134.51,0.00021095,4]
[365354289,1749617435016,-460.0,0.00021095,4]
[365354290,1749617435025,-460.0,0.00021095,4]
[365354291,1749617435034,-460.0,0.00021095,4]
[365354292,1749617435043,-460.0,0.00021095,4]
[365354293,1749617435052,-460.0,0.00021095,4]
[365354294,1749617435062,-460.0,0.00021095,4]
[365354295,1749617435071,-460.0,0.00021095,4]
[365354296,1749617435080,-460.0,0.00021095,4]
[365354297,1749617435089,-460.0,0.00021095,4]
[365354298,1749617435099,-460.0,0.00021095,4]
[365354299,1749617435110,-449.63948808,0.00021095,4]
[365354300,1749617435120,-460.0,0.00021095,4]
[365354301,1749617435129,-460.0,0.00021095,4]
[365354302,1749617435139,-460.0,0.00021095,4]
[365354303,1749617435148,-2425.91,0.00021095,4]
[365354304,1749617435158,-710.76,0.00021095,4]
[365354305,1749617435171,-460.0,0.00021095,4]
[365354306,1749617435181,-460.0,0.00021095,4]
[365354307,1749617435191,-460.0,0.00021095,4]
[365354308,1749617435203,-457.91553057,0.00021095,4]
[365354309,1749617435213,-408.29398825,0.00021095,4]
[365354310,1749617435223,-460.0,0.00021095,4]
[365354311,1749617435232,-460.0,0.00021095,4]
[365354312,1749617435241,-460.0,0.00021095,4]
[365354313,1749617435251,-460.0,0.00021095,4]
[365354314,1749617435260,-278.15543846,0.00021095,4]
[365354315,1749617435271,-460.0,0.00021095,4]
[365354316,1749617435280,-460.0,0.00021095,4]
[365354317,1749617435289,-460.0,0.00021095,4]
[365354318,1749617435299,-460.0,0.00021095,4]
[365354319,1749617435308,-460.0,0.00021095,4]
[365354320,1749617435318,-460.0,0.00021095,4]
[365354321,1749617435327,-437.42308816,0.00021095,4]
[365354322,1749617435336,-460.0,0.00021095,4]
[365354323,1749617435345,-431.79363285,0.00021095,4]
[365354324,1749617435355,-635.72,0.00021095,4]
[365354325,1749617435364,-262.0986916,0.00021095,4]
[365354326,1749617435374,-431.13348392,0.00021095,4]
[365354327,1749617435383,-460.0,0.00021095,4]
[365354328,1749617435392,-460.0,0.00021095,4]
[365354329,1749617435401,-390.0,0.00021095,4]
[365354330,1749617435411,-460.0,0.00021095,4]
[365354331,1749617435420,-2347.76,0.00021095,4]
[365354332,1749617435430,-1154.84,0.00021095,4]
[365354333,1749617435439,-491.03676348,0.00021095,4]
[365354334,1749617435449,-460.0,0.00021095,4]
[365354335,1749617435458,-436.85961124,0.00021095,4]
[365354336,1749617435467,-460.0,0.00021095,4]
[365354337,1749617435477,-460.0,0.00021095,4]
[365354338,1749617435486,-403.49399718,0.00021095,4]
[365354339,1749617435495,-460.0,0.00021095,4]
[365354340,1749617435505,-460.0,0.00021095,4]
[365354341,1749617435514,-2492.72,0.00021095,4]
[365354342,1749617435523,-460.0,0.00021095,4]
[365354343,1749617435533,-360.0,0.00021095,4]
[365354344,1749617435542,-961.63,0.00021095,4]